fUST/lending_fUST_20251105
["ID","MTS","AMOUNT","RATE_DAILY","PERIOD"]
[393125132,1762279839932,-1000.0,0.00023021,2]
[393125134,1762279839942,-1000.0,0.00023021,2]
[393125136,1762279839951,-760.05341535,0.00023021,2]
[393125331,1762279842876,-296.92055414,0.00023021,2]
[393125332,1762279842886,-1000.0,0.00023021,2]
[393125333,1762279842895,-500.0,0.00023021,2]
[393125334,1762279842904,-1000.0,0.00023021,2]
[393125335,1762279842913,-357.73682317,0.00023021,2]
[393125336,1762279842984,-642.26317683,0.00023021,2]
[393125337,1762279842994,-1000.0,0.00023021,2]
[393125338,1762279843007,-500.0,0.00023021,2]
[393125339,1762279843016,-1000.0,0.00023021,2]
[393125340,1762279843026,-465.39798466,0.00023021,2]
[393125341,1762279843035,-1000.0,0.00023021,2]
[393125342,1762279843046,-425.62921973,0.00023021,2]
[393125343,1762279843055,-156.77,0.000233,2]
[393125344,1762279843064,-1500.0,0.00023368,2]
[393125345,1762279843073,-500.0,0.00023416,2]
[393125346,1762279843082,-501.18465866,0.0002344,2]
[393125347,1762279843090,-500.0,0.0002344,2]
[393125348,1762279843099,-500.0,0.0002344,2]
[393125349,1762279843116,-492.33,0.00023538,2]
[393125350,1762279843128,-177.0,0.00023545,2]
[393125351,1762279843137,-1500.0,0.00023568,2]
[393125352,1762279843147,-1075.19154629,0.00023568,2]
[393125353,1762279843157,-1072.4675767,0.00023568,2]
[393125354,1762279843167,-1500.0,0.00023568,2]
[393125355,1762279843177,-1500.0,0.00023568,2]
[393125356,1762279843187,-1500.0,0.00023568,2]
[393125357,1762279843197,-842.6089144,0.00023568,2]
[393125358,1762279843270,-657.3910856,0.00023568,2]
[393125359,1762279843280,-381.86825272,0.00023568,2]
[393125360,1762279843290,-500.0,0.00023568,2]
[393125361,1762279843299,-411.58406646,0.00023568,2]
[393125362,1762279843310,-1088.41593354,0.00023568,2]
[393125363,1762279843320,-658.26,0.00023581,3]
[393125364,1762279843330,-176.28592031,0.00023591,2]
[393125365,1762279843339,-500.0,0.00023591,2]
[393125366,1762279843349,-358.97187652,0.00023591,2]
[393125367,1762279843359,-239.37976358,0.00023591,2]
[393125368,1762279843368,-500.0,0.00023591,2]
[393125369,1762279843378,-577.20082902,0.00023591,2]
[393125370,1762279843388,-500.0,0.00023591,2]
[393125371,1762279843398,-500.0,0.00023591,2]
[393125372,1762279843407,-500.0,0.00023591,2]
[393125373,1762279843417,-500.0,0.00023591,2]
[393125374,1762279843427,-500.0,0.00023591,2]
[393125375,1762279843437,-500.0,0.00023591,2]
[393125376,1762279843446,-501.17163771,0.00023591,2]
[393125377,1762279843456,-500.0,0.00023591,2]
[393125378,1762279843465,-513.53177298,0.00023591,2]
[393125379,1762279843474,-500.0,0.00023591,2]
[393125380,1762279843484,-424.68268576,0.00023591,2]
[393125381,1762279843494,-500.0,0.00023591,2]
[393125382,1762279843505,-156.97774362,0.00023591,2]
[393125383,1762279843515,-501.78778189,0.00023591,2]
[393125384,1762279843524,-500.0,0.00023591,2]
[393125385,1762279843534,-500.0,0.00023591,2]
[393125386,1762279843542,-500.0,0.00023591,2]
[393125387,1762279843552,-500.0,0.00023591,2]
[393125388,1762279843562,-500.0,0.00023591,2]
[393125389,1762279843572,-500.0,0.00023591,2]
[393125390,1762279843581,-504.88759824,0.00023591,2]
[393125391,1762279843591,-500.0,0.00023591,2]
[393125392,1762279843601,-500.0,0.00023591,2]
[393125393,1762279843610,-500.0,0.00023591,2]
[393125394,1762279843621,-156.77,0.000236,2]
[393125395,1762279843630,-158.88479539,0.00023638,2]
[393125396,1762279843643,-500.67658786,0.00023638,2]
[393125397,1762279843652,-500.0,0.00023638,2]
[393125398,1762279843662,-1125.26144632,0.00023671,2]
[393125399,1762279843672,-160.0,0.00023694,2]
[393125400,1762279843682,-500.0,0.00023748,2]
[393125401,1762279843691,-500.9769299,0.00023748,2]
[393125402,1762279843700,-500.0,0.00023748,2]
[393125403,1762279843709,-156.77,0.000239,2]
[393125404,1762279843718,-500.0,0.00023952,2]
[393125405,1762279843727,-515.70850134,0.00023952,2]
[393125406,1762279843736,-877.66,0.00023978,3]
[393125407,1762279843745,-438.83,0.00023978,3]
[393125408,1762279843756,-464.57363186,0.00023988,2]
[393125409,1762279843766,-503.1055677,0.00023988,2]
[393125410,1762279843775,-219.42,0.00024023,3]
[393125411,1762279843784,-2038.02880878,0.00024033,2]
[393125412,1762279843794,-1000.0,0.00024139,2]
[393125413,1762279843803,-163.99802547,0.00024139,2]
[393125414,1762279843812,-1000.0,0.00024139,2]
[393125415,1762279843823,-1000.0,0.00024139,2]
[393125416,1762279843832,-1000.0,0.00024139,2]
[393125417,1762279843841,-1000.0,0.00024139,2]
[393125418,1762279843851,-1000.0,0.00024139,2]
[393125419,1762279843860,-517.90171974,0.00024139,2]
[393125420,1762279843869,-570.32369636,0.00024139,2]
[393125421,1762279843878,-1000.0,0.00024139,2]
[393125422,1762279843887,-1000.0,0.00024139,2]
[393125423,1762279843896,-502.73643182,0.00024139,2]
[393125424,1762279843905,-1000.0,0.00024139,2]
[393125425,1762279843914,-358.58403867,0.00024139,2]
[393125426,1762279843923,-1000.0,0.00024139,2]
[393125427,1762279843933,-584.82724472,0.00024139,2]
[393125428,1762279843942,-1000.0,0.00024139,2]
[393125429,1762279843951,-321.0,0.00024176,2]
[393125430,1762279843966,-156.77,0.000242,2]
[393125431,1762279843975,-286.05761163,0.00024239,2]
[393125432,1762279843984,-500.0,0.0002424,2]
[393125433,1762279843993,-500.0,0.0002424,2]
[393125434,1762279844004,-500.79978873,0.0002424,2]
[393125435,1762279844013,-500.0,0.0002424,2]
[393125436,1762279844022,-423.76176161,0.0002424,2]
[393125437,1762279844033,-500.0,0.0002424,2]
[393125438,1762279844043,-167.50972017,0.00024242,2]
[393125458,1762279846067,-92.49027983,0.00024242,2]
[393125459,1762279846077,-504.7902231,0.00024288,2]
[393125460,1762279846086,-260.78,0.000243,7]
[393125461,1762279846095,-485.40550878,0.00024433,2]
[393125477,1762280055865,200.0,0.00019032,2]
[393125485,1762280149356,157.761866,0.00013699,2]
[393125491,1762280536598,150.0,0.00017715,2]
[393125492,1762280536997,150.0,0.00019325,2]
[393125575,1762280718006,201.93286099,0.00037821,30]
[393125577,1762280795852,150.0,0.00017726,2]
[393125578,1762280796259,150.0,0.00019337,2]
[393125579,1762280796656,150.0,0.00020949,2]
[393125593,1762280845207,2362746.70308566,0.00037821,20]
[393125597,1762280851897,300.0,0.000209,2]
[393125606,1762280862971,300.0,0.000209,2]
[393125616,1762280870861,150.0,0.00018755,2]
[393125617,1762280871315,150.0,0.0002046,2]
[393125620,1762280873416,300.0,0.000209,2]
[393125621,1762280874291,458.97025858,0.0003,120]
[393125627,1762280879553,5000.0,0.000211,2]
[393125634,1762280887663,5000.0,0.000211,2]
[393125638,1762280903248,5000.0,0.000211,2]
[393125639,1762280906793,5545.89839341,0.00029,120]
[393125640,1762280913128,9549.81931933,0.00019,2]
[393125642,1762280919512,3889.99995599,0.00037821,20]
[393125645,1762280922647,1000.0,0.00037821,20]
[393125647,1762280923707,21128.22334744,0.00021,2]
[393125648,1762280926001,589.5153038,0.000222,9]
[393125649,1762280946315,150.0,0.00018358,2]
[393125650,1762280946731,150.0,0.00020027,2]
[393125651,1762280955776,232.75,0.00019034,2]
[393125652,1762280956088,232.75,0.00019034,3]
[393125653,1762280956398,279.3,0.00015898,3]
[393125655,1762281005952,20109.48095433,0.00037901,30]
[393125656,1762281005989,151.0,0.00037901,30]
[393125657,1762281006037,460.20060327,0.00037901,30]
[393125658,1762281006075,250.0,0.00037901,30]
[393125659,1762281006114,151.0,0.00037901,30]
[393125660,1762281006166,500.0,0.00037901,30]
[393125661,1762281006203,3034.83244205,0.00037901,30]
[393125662,1762281006492,151.0,0.00037901,30]
[393125663,1762281006587,151.0,0.00037901,30]
[393125664,1762281006650,250.0,0.00037901,30]
[393125665,1762281006701,151.0,0.00037901,30]
[393125666,1762281006741,500.0,0.00037901,30]
[393125667,1762281007101,151.0,0.00037901,30]
[393125668,1762281007290,250.0,0.00037901,30]
[393125669,1762281007402,500.0,0.00037901,30]
[393125670,1762281007903,250.0,0.00037901,30]
[393125671,1762281008002,500.0,0.00037901,30]
[393125672,1762281008503,250.0,0.00037901,30]
[393125673,1762281008708,500.0,0.00037901,30]
[393125674,1762281008748,414.0,0.00037901,30]
[393125675,1762281009099,250.0,0.00037901,30]
[393125676,1762281009268,429.318,0.00037901,30]
[393125677,1762281009370,500.0,0.00037901,30]
[393125678,1762281009567,250.0,0.00037901,30]
[393125679,1762281009600,153.89377708,0.00037901,30]
[393125680,1762281009877,445.202766,0.00037901,30]
[393125681,1762281009973,500.0,0.00037901,30]
[393125682,1762281010546,461.67526834,0.00037901,30]
[393125683,1762281010608,500.0,0.00037901,30]
[393125684,1762281011169,478.75725327,0.00037901,30]
[393125685,1762281011801,496.47127164,0.00037901,30]
[393125686,1762281012240,151.34424707,0.00037901,30]
[393125687,1762281012424,514.84070869,0.00037901,30]
[393125688,1762281012591,300.0,0.00037901,30]
[393125689,1762281013035,533.88981491,0.00037901,30]
[393125690,1762281013137,151.0,0.00037901,30]
[393125691,1762281013192,300.0,0.00037901,30]
[393125692,1762281013668,553.64373807,0.00037901,30]
[393125693,1762281013928,156.587,0.00037901,30]
[393125694,1762281014294,574.12855637,0.00037901,30]
[393125695,1762281014564,162.380719,0.00037901,30]
[393125696,1762281015114,595.37131296,0.00037901,30]
[393125697,1762281015213,168.3888056,0.00037901,30]
[393125698,1762281015517,617.40005154,0.00037901,30]
[393125699,1762281015775,174.61919141,0.00037901,30]
[393125700,1762281016150,640.24385345,0.00037901,30]
[393125701,1762281016417,181.08010149,0.00037901,30]
[393125702,1762281016755,663.93287602,0.00037901,30]
[393125703,1762281017048,187.78006525,0.00037901,30]
[393125704,1762281017287,250.0,0.00037901,30]
[393125705,1762281017380,688.49839244,0.00037901,30]
[393125706,1762281017905,194.72792766,0.00037901,30]
[393125707,1762281017953,250.0,0.00037901,30]
[393125708,1762281018010,713.97283296,0.00037901,30]
[393125709,1762281018572,201.93286099,0.00037901,30]
[393125710,1762281018652,740.38982778,0.00037901,30]
[393125711,1762281018710,250.0,0.00037901,30]
[393125712,1762281019206,209.40437684,0.00037901,30]
[393125713,1762281019368,767.7842514,0.00037901,30]
[393125714,1762281019403,250.0,0.00037901,30]
[393125715,1762281019820,217.15233878,0.00037901,30]
[393125716,1762281020089,796.19226871,0.00037901,30]
[393125717,1762281020125,250.0,0.00037901,30]
[393125718,1762281020463,217.15233878,0.00037901,30]
[393125719,1762281020764,796.19226871,0.00037901,30]
[393125720,1762281020799,250.0,0.00037901,30]
[393125721,1762281021495,250.0,0.00037901,30]
[393125722,1762281022143,250.0,0.00037901,30]
[393125723,1762281022718,150.0,0.00017758,2]
[393125724,1762281022775,250.0,0.00037901,30]
[393125725,1762281023139,150.0,0.00019372,2]
[393125726,1762281023489,250.0,0.00037901,30]
[393125727,1762281023537,150.0,0.00020986,2]
[393125728,1762281023990,250.0,0.00037901,30]
[393125729,1762281027583,163.40686982,0.00037901,30]
[393125795,1762281032966,-319.0,0.00021221,2]
[393125796,1762281032976,-1212.1,0.00021221,2]
[393125797,1762281037114,-837.36254192,0.00021221,2]
[393125798,1762281037124,-579.82802454,0.00021221,2]
[393125799,1762281037133,-150.0,0.00021511,2]
[393125800,1762281037142,-500.0,0.000218,2]
[393125801,1762281037152,-257.43381489,0.00022196,2]
[393125802,1762281037161,-1200.0,0.00022294,2]
[393125803,1762281037171,-1200.0,0.00022294,2]
[393125804,1762281037182,-638.3656324,0.00022425,30]
[393125805,1762281037191,-300.0,0.00022458,2]
[393125806,1762281037200,-300.0,0.00022458,2]
[393125807,1762281037210,-300.0,0.00022458,2]
[393125808,1762281037220,-300.0,0.00022458,2]
[393125809,1762281037230,-300.0,0.00022458,2]
[393125810,1762281037239,-500.0,0.00022458,2]
[393125811,1762281037248,-500.0,0.00022458,2]
[393125812,1762281037257,-500.0,0.00022471,2]
[393125813,1762281037267,-500.0,0.00022471,2]
[393125814,1762281037281,-500.0,0.00022472,2]
[393125815,1762281037290,-500.0,0.00022472,2]
[393125816,1762281037300,-437.17081058,0.00022472,2]
[393125817,1762281037309,-500.0,0.00022472,2]
[393125818,1762281037318,-500.0,0.00022472,2]
[393125819,1762281037327,-500.0,0.00022472,2]
[393125820,1762281037337,-500.0,0.00022472,2]
[393125821,1762281037346,-500.0,0.00022472,2]
[393125822,1762281037356,-500.0,0.00022472,2]
[393125823,1762281037369,-500.0,0.00022472,2]
[393125824,1762281037378,-500.0,0.00022472,2]
[393125825,1762281037387,-500.0,0.00022472,2]
[393125826,1762281037396,-311.74773833,0.00022472,2]
[393125827,1762281037405,-500.0,0.00022472,2]
[393125828,1762281037414,-500.0,0.00022472,2]
[393125829,1762281037424,-500.0,0.00022472,2]
[393125830,1762281037437,-500.0,0.00022472,2]
[393125831,1762281037447,-500.0,0.00022472,2]
[393125832,1762281037456,-500.0,0.00022472,2]
[393125833,1762281037466,-500.0,0.00022472,2]
[393125834,1762281037475,-500.0,0.00022472,2]
[393125835,1762281037485,-500.0,0.00022472,2]
[393125836,1762281037494,-500.0,0.00022472,2]
[393125837,1762281037503,-500.0,0.00022472,2]
[393125839,1762281037512,-500.0,0.00022472,2]
[393125840,1762281037522,-500.0,0.00022472,2]
[393125841,1762281037531,-392.48403438,0.00022472,2]
[393125868,1762281038031,-107.51596562,0.00022472,2]
[393125869,1762281038042,-500.0,0.00022472,2]
[393125870,1762281038052,-46.05893488,0.00022472,2]
[393125871,1762281038087,-453.94106512,0.00022472,2]
[393125872,1762281038097,-500.0,0.00022472,2]
[393125873,1762281038107,-500.0,0.00022472,2]
[393125874,1762281038117,-500.0,0.00022472,2]
[393125875,1762281038127,-500.0,0.00022472,2]
[393125876,1762281038136,-500.0,0.00022472,2]
[393125877,1762281038146,-500.0,0.00022472,2]
[393125878,1762281038156,-322.34699894,0.00022472,2]
[393125879,1762281038168,-177.65300106,0.00022472,2]
[393125880,1762281038179,-500.0,0.00022472,2]
[393125881,1762281038191,-500.0,0.00022472,2]
[393125882,1762281038203,-500.0,0.00022472,2]
[393125883,1762281038213,-500.0,0.00022472,2]
[393125884,1762281038224,-500.0,0.00022472,2]
[393125885,1762281038234,-500.0,0.00022472,2]
[393125886,1762281038244,-285.39332194,0.00022472,2]
[393125887,1762281038254,-500.0,0.00022472,2]
[393125888,1762281038264,-500.0,0.00022472,2]
[393125889,1762281038277,-500.0,0.00022472,2]
[393125890,1762281038287,-242.84929836,0.00022472,2]
[393125891,1762281038304,-257.15070164,0.00022472,2]
[393125892,1762281038314,-500.0,0.00022472,2]
[393125893,1762281038324,-500.0,0.00022472,2]
[393125894,1762281038334,-500.0,0.00022472,2]
[393125895,1762281038344,-500.0,0.00022472,2]
[393125896,1762281038354,-500.0,0.00022472,2]
[393125897,1762281038366,-500.0,0.00022472,2]
[393125898,1762281038376,-500.0,0.00022472,2]
[393125899,1762281038386,-500.0,0.00022472,2]
[393125900,1762281038396,-500.0,0.00022472,2]
[393125901,1762281038406,-500.0,0.00022472,2]
[393125902,1762281038416,-500.0,0.00022472,2]
[393125903,1762281038427,-500.0,0.00022472,2]
[393125904,1762281038440,-500.0,0.00022472,2]
[393125905,1762281038450,-500.0,0.00022472,2]
[393125906,1762281038461,-500.0,0.00022472,2]
[393125907,1762281038471,-500.0,0.00022472,2]
[393125908,1762281038481,-500.0,0.00022472,2]
[393125909,1762281038491,-295.25416621,0.00022472,2]
[393125910,1762281038501,-500.0,0.00022472,2]
[393125911,1762281038511,-500.0,0.00022472,2]
[393125912,1762281038521,-500.0,0.00022472,2]
[393125913,1762281038532,-500.0,0.00022472,2]
[393125914,1762281038542,-500.0,0.00022472,2]
[393125915,1762281038552,-500.0,0.00022472,2]
[393125916,1762281038562,-500.0,0.00022472,2]
[393125917,1762281038573,-500.0,0.00022472,2]
[393125918,1762281038584,-500.0,0.00022472,2]
[393125919,1762281038595,-500.0,0.00022472,2]
[393125920,1762281038606,-500.0,0.00022472,2]
[393125921,1762281038617,-500.0,0.00022472,2]
[393125922,1762281038628,-500.0,0.00022472,2]
[393125923,1762281038638,-500.0,0.00022472,2]
[393125924,1762281038648,-500.0,0.00022472,2]
[393125925,1762281038658,-500.0,0.00022472,2]
[393125926,1762281038668,-500.0,0.00022472,2]
[393125927,1762281038679,-500.0,0.00022472,2]
[393125928,1762281038691,-314.21027834,0.00022472,2]
[393125929,1762281038701,-500.0,0.00022472,2]
[393125930,1762281038711,-500.0,0.00022472,2]
[393125931,1762281038721,-500.0,0.00022472,2]
[393125932,1762281038731,-500.0,0.00022472,2]
[393125933,1762281038741,-500.0,0.00022472,2]
[393125934,1762281038751,-500.0,0.00022472,2]
[393125935,1762281038761,-500.0,0.00022472,2]
[393125936,1762281038771,-500.0,0.00022472,2]
[393125937,1762281038781,-500.0,0.00022472,2]
[393125938,1762281038792,-500.0,0.00022472,2]
[393125939,1762281038802,-500.0,0.00022472,2]
[393125940,1762281038813,-500.0,0.00022472,2]
[393125941,1762281038824,-500.0,0.00022472,2]
[393125942,1762281038834,-500.0,0.00022472,2]
[393125943,1762281038844,-500.0,0.00022472,2]
[393125944,1762281038854,-500.0,0.00022472,2]
[393125945,1762281038863,-500.0,0.00022472,2]
[393125946,1762281038874,-500.0,0.00022472,2]
[393125947,1762281038883,-500.0,0.00022472,2]
[393125948,1762281038894,-500.0,0.00022472,2]
[393125949,1762281038903,-500.0,0.00022472,2]
[393125950,1762281038913,-500.0,0.00022472,2]
[393125951,1762281038923,-500.0,0.00022472,2]
[393125952,1762281038936,-500.0,0.00022472,2]
[393125953,1762281038947,-500.0,0.00022472,2]
[393125954,1762281038958,-500.0,0.00022472,2]
[393125955,1762281038969,-500.0,0.00022472,2]
[393125956,1762281038980,-403.05635548,0.00022472,2]
[393125957,1762281038991,-500.0,0.00022472,2]
[393125958,1762281039001,-500.0,0.00022472,2]
[393125959,1762281039012,-500.0,0.00022472,2]
[393125960,1762281039023,-500.0,0.00022472,2]
[393125961,1762281039033,-500.0,0.00022472,2]
[393125962,1762281039043,-500.0,0.00022472,2]
[393125963,1762281039053,-500.0,0.00022472,2]
[393125964,1762281039064,-500.0,0.00022472,2]
[393125965,1762281039074,-500.0,0.00022472,2]
[393125966,1762281039084,-500.0,0.00022472,2]
[393125967,1762281039095,-500.0,0.00022472,2]
[393125968,1762281039104,-500.0,0.00022472,2]
[393125969,1762281039115,-500.0,0.00022472,2]
[393125970,1762281039125,-500.0,0.00022472,2]
[393125971,1762281039135,-500.0,0.00022472,2]
[393125972,1762281039145,-500.0,0.00022472,2]
[393125973,1762281039155,-500.0,0.00022472,2]
[393125974,1762281039165,-500.0,0.00022472,2]
[393125975,1762281039175,-500.0,0.00022472,2]
[393125976,1762281039187,-500.0,0.00022472,2]
[393125977,1762281039197,-500.0,0.00022472,2]
[393125978,1762281039206,-500.0,0.00022472,2]
[393125979,1762281039218,-500.0,0.00022472,2]
[393125980,1762281039227,-500.0,0.00022472,2]
[393125981,1762281039237,-500.0,0.00022472,2]
[393125982,1762281039246,-500.0,0.00022472,2]
[393125983,1762281039256,-500.0,0.00022472,2]
[393125984,1762281039265,-500.0,0.00022472,2]
[393125985,1762281039280,-500.0,0.00022472,2]
[393125986,1762281039298,-500.0,0.00022472,2]
[393125987,1762281039308,-500.0,0.00022472,2]
[393125988,1762281039318,-500.0,0.00022472,2]
[393125989,1762281039432,-500.0,0.00022472,2]
[393125991,1762281039442,-500.0,0.00022472,2]
[393125992,1762281039451,-500.0,0.00022472,2]
[393125993,1762281039461,-500.0,0.00022472,2]
[393125994,1762281039471,-500.0,0.00022472,2]
[393125995,1762281039481,-500.0,0.00022472,2]
[393125996,1762281039490,-500.0,0.00022472,2]
[393125997,1762281039500,-500.0,0.00022472,2]
[393125998,1762281039510,-500.0,0.00022472,2]
[393125999,1762281039519,-500.0,0.00022472,2]
[393126000,1762281039529,-500.0,0.00022472,2]
[393126001,1762281039538,-500.0,0.00022472,2]
[393126002,1762281039547,-500.0,0.00022472,2]
[393126003,1762281039558,-500.0,0.00022472,2]
[393126004,1762281039567,-500.0,0.00022472,2]
[393126005,1762281039577,-500.0,0.00022472,2]
[393126006,1762281039586,-500.0,0.00022472,2]
[393126007,1762281039595,-500.0,0.00022472,2]
[393126008,1762281039604,-500.0,0.00022472,2]
[393126009,1762281039614,-500.0,0.00022472,2]
[393126010,1762281039623,-500.0,0.00022472,2]
[393126011,1762281039632,-500.0,0.00022472,2]
[393126012,1762281039641,-500.0,0.00022472,2]
[393126013,1762281039651,-500.0,0.00022472,2]
[393126014,1762281039660,-500.0,0.00022472,2]
[393126015,1762281039669,-500.0,0.00022472,2]
[393126016,1762281039678,-500.0,0.00022472,2]
[393126017,1762281039689,-500.0,0.00022472,2]
[393126018,1762281039698,-500.0,0.00022472,2]
[393126019,1762281039708,-500.0,0.00022472,2]
[393126020,1762281039717,-500.0,0.00022472,2]
[393126021,1762281039726,-241.76822961,0.00022472,2]
[393126022,1762281039735,-500.0,0.00022472,2]
[393126023,1762281039744,-500.0,0.00022472,2]
[393126024,1762281039754,-500.0,0.00022472,2]
[393126025,1762281039763,-500.0,0.00022472,2]
[393126026,1762281039772,-500.0,0.00022472,2]
[393126027,1762281039781,-500.0,0.00022472,2]
[393126028,1762281039791,-500.0,0.00022472,2]
[393126029,1762281039800,-160.0,0.00022472,2]
[393126030,1762281039809,-500.0,0.00022473,2]
[393126031,1762281039818,-500.0,0.00022473,2]
[393126032,1762281039828,-500.0,0.00022473,2]
[393126033,1762281039837,-500.0,0.00022473,2]
[393126034,1762281039847,-500.0,0.00022473,2]
[393126035,1762281039857,-500.0,0.00022473,2]
[393126036,1762281039867,-500.0,0.00022473,2]
[393126037,1762281039875,-500.0,0.00022473,2]
[393126038,1762281039885,-151.0,0.00022486,2]
[393126039,1762281039895,-232.02410139,0.00022486,2]
[393126040,1762281039905,-12780.25,0.00022489,2]
[393126041,1762281039918,-1747.2,0.00022489,3]
[393126042,1762281039927,-873.6,0.00022489,3]
[393126043,1762281039939,-436.8,0.00022489,3]
[393126045,1762281039948,-218.4,0.00022489,3]
[393126046,1762281039958,-655.23,0.00022489,3]
[393126048,1762281039967,-425.54843947,0.00022498,2]
[393126049,1762281039977,-500.0,0.00022499,2]
[393126050,1762281039986,-1024.27764478,0.000225,2]
[393126051,1762281039996,-1330.97,0.000225,14]
[393126052,1762281040005,-12780.26,0.000225,2]
[393126053,1762281040015,-12780.26,0.000225,2]
[393126054,1762281040025,-12780.26,0.000225,2]
[393126055,1762281040035,-12780.26,0.000225,2]
[393126056,1762281040045,-12780.26,0.000225,2]
[393126057,1762281040055,-12780.26,0.000225,2]
[393126058,1762281040065,-12780.26,0.000225,2]
[393126059,1762281040074,-8348.57827767,0.000225,2]
[393126060,1762281040088,-4431.68172233,0.000225,2]
[393126061,1762281040098,-2086.12580863,0.000225,2]
[393126065,1762281040307,-1949.90912133,0.00022479,10]
[393126066,1762281040326,-268.50000015,0.00022479,10]
[393126094,1762281046370,-4343.82087852,0.00022479,10]
[393126096,1762281046380,-10694.13419137,0.000225,2]
[393126098,1762281046389,-23836.58,0.000225,7]
[393126100,1762281046398,-364.42,0.000225,7]
[393126101,1762281046407,-150.0,0.00022601,2]
[393126102,1762281046416,-160.0,0.00022746,2]
[393126104,1762281046425,-501.64134017,0.0002275,2]
[393126106,1762281046433,-635.05896472,0.0002275,2]
[393126108,1762281046445,-500.0,0.00022763,2]
[393126110,1762281046459,-500.0,0.00022763,2]
[393126112,1762281046469,-500.0,0.00022763,2]
[393126114,1762281046478,-500.0,0.00022763,2]
[393126116,1762281046487,-503.33778064,0.00022764,2]
[393126117,1762281046496,-500.0,0.00022764,2]
[393126118,1762281046505,-500.0,0.00022764,2]
[393126119,1762281046514,-500.0,0.00022773,2]
[393126120,1762281046523,-500.0,0.0002284,2]
[393126121,1762281046531,-500.0,0.00022896,2]
[393126122,1762281046540,-514.24218317,0.0002292,2]
[393126123,1762281046549,-399.43991337,0.0002292,2]
[393126124,1762281046561,-100.56008663,0.0002292,2]
[393126125,1762281046570,-300.0,0.00022921,20]
[393126126,1762281046579,-300.0,0.00022921,20]
[393126127,1762281046590,-300.0,0.00022921,20]
[393126128,1762281046599,-300.0,0.00022921,20]
[393126129,1762281046609,-300.0,0.00022921,20]
[393126130,1762281046618,-300.0,0.00022921,20]
[393126131,1762281046627,-300.0,0.00022921,20]
[393126132,1762281046636,-300.0,0.00022921,20]
[393126133,1762281046645,-300.0,0.00022921,20]
[393126134,1762281046655,-300.0,0.00022921,20]
[393126135,1762281046664,-300.0,0.00022921,20]
[393126136,1762281046674,-300.0,0.00022921,20]
[393126137,1762281046683,-300.0,0.00022921,20]
[393126138,1762281046694,-300.0,0.00022921,20]
[393126139,1762281046703,-300.0,0.00022921,20]
[393126140,1762281046713,-501.78613142,0.00022973,2]
[393126141,1762281046722,-503.80245893,0.00022973,2]
[393126142,1762281046732,-500.0,0.00022973,2]
[393126143,1762281046860,-502.00652876,0.00022973,2]
[393126144,1762281046874,-37.84479421,0.00022973,2]
[393126145,1762281165639,150.0,0.00021187,30]